fUST/lending_fUST_20260104
["ID","MTS","AMOUNT","RATE_DAILY","PERIOD"]
[400390802,1767497440735,-13607.23918876,0.00013393,2]
[400390803,1767497440746,-1806.18249021,0.00013393,2]
[400390810,1767497445314,-5082.22367049,0.00013393,2]
[400390811,1767497445326,-731.14783922,0.00013393,2]
[400390812,1767497445338,-8327.05058126,0.00013393,2]
[400390813,1767497445372,-371.12484557,0.00013393,2]
[400390818,1767497446399,-275017.89206991,0.00013393,2]
[400390819,1767497446412,-9239.59067387,0.00013393,2]
[400390820,1767497446426,-877.01350082,0.00013393,2]
[400390828,1767497556673,155.24,9.756e-05,2]
[400390829,1767497556944,186.29,0.00010147,2]
[400390830,1767497557394,217.34,0.00010537,2]
[400390831,1767497557779,248.39,0.00010927,2]
[400390832,1767497558184,279.44,0.00011317,2]
[400390833,1767497558604,310.49,0.00011708,2]
[400390853,1767497873698,2000.0,0.00012,5]
[400390888,1767498433025,198.0,0.00030136,120]
[400390897,1767498528890,1315.0,0.00030137,120]
[400390940,1767498632954,-401.15789213,0.00012564,2]
[400390963,1767498638392,-298.28210787,0.00012564,2]
[400390965,1767498638402,-600.0,0.00012691,2]
[400390967,1767498638412,-69.44240829,0.00012819,2]
[400390969,1767498638424,-307.38048838,0.00012819,2]
[400390971,1767498638434,-2361.59951162,0.0001287,2]
[400390973,1767498638450,-1009.74048838,0.0001287,2]
[400390974,1767498638461,-500.0,0.00012896,2]
[400390975,1767498638471,-500.0,0.00012896,2]
[400390976,1767498638490,-500.0,0.00012896,2]
[400390977,1767498638513,-500.67567149,0.00012896,2]
[400390978,1767498638533,-500.0,0.00012896,2]
[400390979,1767498638557,-500.0,0.00012896,2]
[400390980,1767498638580,-500.0,0.00012896,2]
[400390981,1767498638601,-500.0,0.00012896,2]
[400390982,1767498638621,-500.0,0.00012896,2]
[400390983,1767498638643,-500.0,0.00012896,2]
[400390984,1767498638660,-250.0,0.00012896,2]
[400390985,1767498638677,-500.0,0.00012896,2]
[400390986,1767498638699,-358.09250706,0.00012896,2]
[400390987,1767498638723,-500.0,0.00012896,2]
[400390988,1767498638744,-500.0,0.00012896,2]
[400390989,1767498638758,-500.0,0.00012896,2]
[400390990,1767498638779,-500.0,0.00012896,2]
[400390991,1767498638797,-500.0,0.00012896,2]
[400390992,1767498638816,-500.0,0.00012896,2]
[400390993,1767498638831,-500.0,0.00012896,2]
[400390994,1767498638850,-500.0,0.00012896,2]
[400390995,1767498638868,-500.0,0.00012896,2]
[400390996,1767498638886,-500.0,0.00012896,2]
[400390997,1767498638904,-500.0,0.00012896,2]
[400390998,1767498638922,-500.0,0.00012896,2]
[400390999,1767498638940,-367.06114043,0.00012896,2]
[400391000,1767498638957,-500.0,0.00012896,2]
[400391001,1767498638975,-500.0,0.00012896,2]
[400391002,1767498638991,-500.0,0.00012896,2]
[400391003,1767498639009,-500.0,0.00012896,2]
[400391004,1767498639026,-500.0,0.00012896,2]
[400391005,1767498639043,-500.0,0.00012896,2]
[400391006,1767498639060,-500.0,0.00012896,2]
[400391007,1767498639076,-500.0,0.00012896,2]
[400391008,1767498639093,-500.0,0.00012896,2]
[400391009,1767498639112,-500.0,0.00012896,2]
[400391010,1767498639130,-500.0,0.00012896,2]
[400391011,1767498639147,-500.0,0.00012896,2]
[400391012,1767498639164,-500.0,0.00012896,2]
[400391013,1767498639184,-508.04982902,0.00012896,2]
[400391014,1767498639200,-500.0,0.00012896,2]
[400391015,1767498639217,-500.0,0.00012896,2]
[400391016,1767498639234,-500.0,0.00012896,2]
[400391017,1767498639252,-500.0,0.00012896,2]
[400391018,1767498639269,-500.0,0.00012896,2]
[400391019,1767498639286,-500.0,0.00012896,2]
[400391020,1767498639303,-500.0,0.00012896,2]
[400391021,1767498639320,-500.0,0.00012896,2]
[400391022,1767498639337,-500.0,0.00012896,2]
[400391023,1767498639355,-500.0,0.00012896,2]
[400391024,1767498639367,-21.64775298,0.00012896,2]
[400391025,1767498639380,-478.35224702,0.00012896,2]
[400391026,1767498639390,-594.61877659,0.00012896,2]
[400391027,1767498639399,-240.87206971,0.00012896,2]
[400391028,1767498639409,-594.61877659,0.00012896,2]
[400391029,1767498639419,-358.06874342,0.00012896,2]
[400391030,1767498639617,-594.61877659,0.00012896,2]
[400391031,1767498639644,-594.61877659,0.00012896,2]
[400391032,1767498639654,-594.61877659,0.00012896,2]
[400391033,1767498639664,-594.61877659,0.00012896,2]
[400391034,1767498639674,-594.61877659,0.00012896,2]
[400391035,1767498639684,-594.61877659,0.00012896,2]
[400391036,1767498639693,-231.393798,0.00012896,2]
[400391037,1767498639705,-363.22497859,0.00012896,2]
[400391038,1767498639715,-594.61877659,0.00012896,2]
[400391039,1767498639724,-594.61877659,0.00012896,2]
[400391040,1767498639734,-160.36344023,0.00012896,2]
[400391041,1767498639756,-434.25533636,0.00012896,2]
[400391042,1767498639765,-594.61877659,0.00012896,2]
[400391043,1767498639775,-304.74311905,0.00012896,2]
[400391044,1767498639788,-289.87565754,0.00012896,2]
[400391045,1767498639802,-162.21234873,0.00012896,2]
[400391046,1767498639814,-432.40642786,0.00012896,2]
[400391047,1767498639824,-594.61877659,0.00012896,2]
[400391048,1767498639833,-594.61877659,0.00012896,2]
[400391049,1767498639843,-594.61877659,0.00012896,2]
[400391050,1767498639853,-377.55034415,0.00012896,2]
[400391051,1767498639865,-217.06843244,0.00012896,2]
[400391052,1767498639875,-341.03126756,0.00012896,2]
[400391053,1767498639927,-253.58750903,0.00012896,2]
[400391054,1767498639938,-594.61877659,0.00012896,2]
[400391055,1767498639947,-594.61877659,0.00012896,2]
[400391056,1767498639957,-300.0,0.00012896,2]
[400391057,1767498639967,-300.0,0.00012896,2]
[400391058,1767498639977,-300.0,0.00012896,2]
[400391059,1767498639987,-300.0,0.00012896,2]
[400391060,1767498639997,-1200.0,0.00012896,2]
[400391061,1767498640007,-1200.0,0.00012897,2]
[400391062,1767498640017,-161.18556153,0.00012897,2]
[400391063,1767498640027,-500.0,0.00012898,2]
[400391064,1767498640038,-2581.33635158,0.00012899,2]
[400391089,1767498640561,-12434.64349702,0.00012899,2]
[400391092,1767498640574,-445.525,0.00012899,2]
[400391120,1767498645617,-624.34971543,0.00012896,2]
[400391121,1767498645627,-624.34971543,0.00012896,2]
[400391122,1767498645637,-624.34971543,0.00012896,2]
[400391123,1767498645646,-624.34971543,0.00012896,2]
[400391124,1767498645655,-624.34971543,0.00012896,2]
[400391125,1767498645665,-624.34971543,0.00012896,2]
[400391126,1767498645674,-624.34971543,0.00012896,2]
[400391127,1767498645684,-624.34971543,0.00012896,2]
[400391128,1767498645693,-8665.59648223,0.00012899,2]
[400391132,1767498646615,-5288.01280086,0.00012899,2]
[400391133,1767498646628,-1931.59,0.00012899,2]
[400391135,1767498675585,171.52,0.000109,2]
[400391136,1767498675981,196.02,0.00011303,2]
[400391137,1767498676415,220.52,0.00011707,2]
[400391138,1767498688230,-192.4667536,0.00012111,2]
[400391139,1767498712878,-52.5532464,0.00012111,2]
[400391140,1767498712900,-379.88268103,0.0001244,2]
[400391141,1767498712922,-5000.0,0.0001277,2]
[400391142,1767498712949,-500.0,0.00012896,2]
[400391143,1767498712970,-500.0,0.00012896,2]
[400391144,1767498712992,-500.0,0.00012896,2]
[400391145,1767498713014,-500.0,0.00012896,2]
[400391146,1767498713035,-436.52548181,0.00012896,2]
[400391147,1767498713059,-500.0,0.00012896,2]
[400391148,1767498713081,-500.0,0.00012896,2]
[400391149,1767498713104,-500.0,0.00012896,2]
[400391150,1767498713128,-500.0,0.00012896,2]
[400391151,1767498713151,-131.03859076,0.00012896,2]
[400391463,1767499832831,-4096.7742434,0.00012219,2]
[400391464,1767499832841,-592.0,0.00012219,2]
[400391465,1767499832851,-372.28502741,0.00012404,2]
[400391466,1767499832860,-1200.0,0.00012654,2]
[400391467,1767499832870,-548.0,0.00012655,2]
[400391468,1767499832879,-153.0,0.00012655,2]
[400391469,1767499832888,-215.0,0.00012655,2]
[400391470,1767499832898,-300.0,0.00012655,2]
[400391471,1767499832908,-4456.06270154,0.00012656,2]
[400391493,1767499840753,-1588.93729846,0.00012656,2]
[400391494,1767499840762,-964.26321234,0.00012692,2]
[400391496,1767499840773,-964.26321232,0.00012719,2]
[400391497,1767499840782,-964.26321232,0.00012745,2]
[400391498,1767499840791,-964.26321232,0.00012772,2]
[400391499,1767499840801,-500.0,0.00012789,2]
[400391500,1767499840810,-500.0,0.00012789,2]
[400391501,1767499840819,-500.0,0.00012789,2]
[400391502,1767499840828,-268.79672408,0.00012789,2]
[400391503,1767499840837,-228.81835477,0.00012789,2]
[400391504,1767499840849,-500.0,0.00012789,2]
[400391505,1767499840858,-500.0,0.00012789,2]
[400391506,1767499840869,-500.0,0.00012789,2]
[400391507,1767499840878,-21.66403254,0.00012789,2]
[400391508,1767499840968,-478.33596746,0.00012789,2]
[400391509,1767499840977,-500.0,0.00012789,2]
[400391510,1767499840987,-500.0,0.00012789,2]
[400391511,1767499840996,-500.0,0.00012789,2]
[400391512,1767499841007,-9.53453135,0.00012789,2]
[400391513,1767499841178,-490.46546865,0.00012789,2]
[400391514,1767499841187,-500.0,0.00012789,2]
[400391515,1767499841197,-500.0,0.00012789,2]
[400391516,1767499841206,-500.0,0.00012789,2]
[400391517,1767499841216,-241.35218677,0.00012789,2]
[400391665,1767499845814,-153.18832837,0.00012785,2]
[400391666,1767499845824,-258.64781323,0.00012789,2]
[400391668,1767499845834,-500.0,0.00012789,2]
[400391669,1767499845843,-500.0,0.00012789,2]
[400391670,1767499845854,-500.0,0.00012789,2]
[400391671,1767499845863,-500.0,0.00012789,2]
[400391672,1767499845873,-500.0,0.00012789,2]
[400391673,1767499845883,-500.0,0.00012789,2]
[400391674,1767499845893,-500.0,0.00012789,2]
[400391675,1767499845903,-500.0,0.00012789,2]
[400391677,1767499845912,-500.0,0.00012789,2]
[400391678,1767499845922,-500.0,0.00012789,2]
[400391679,1767499845931,-500.0,0.00012789,2]
[400391680,1767499845941,-280.09837972,0.00012789,2]
[400391681,1767499845951,-500.0,0.00012789,2]
[400391682,1767499845961,-500.0,0.00012789,2]
[400391683,1767499845971,-500.0,0.00012789,2]
[400391684,1767499845981,-500.0,0.00012789,2]
[400391685,1767499845991,-500.0,0.00012789,2]
[400391686,1767499846000,-500.0,0.00012789,2]
[400391687,1767499846009,-500.0,0.00012789,2]
[400391688,1767499846019,-500.0,0.00012789,2]
[400391689,1767499846028,-500.0,0.00012789,2]
[400391690,1767499846037,-500.0,0.00012789,2]
[400391691,1767499846046,-500.0,0.00012789,2]
[400391692,1767499846056,-500.0,0.00012789,2]
[400391693,1767499846066,-500.0,0.00012789,2]
[400391694,1767499846075,-500.0,0.00012789,2]
[400391696,1767499846084,-197.04916434,0.00012789,2]
[400391698,1767499846093,-500.0,0.00012789,2]
[400391699,1767499846103,-500.0,0.00012789,2]
[400391700,1767499846113,-500.0,0.00012789,2]
[400391701,1767499846123,-500.0,0.00012789,2]
[400391702,1767499846132,-500.0,0.00012789,2]
[400391703,1767499846142,-500.0,0.00012789,2]
[400391704,1767499846151,-500.0,0.00012789,2]
[400391705,1767499846160,-500.0,0.00012789,2]
[400391706,1767499846170,-500.0,0.00012789,2]
[400391707,1767499846179,-500.0,0.00012789,2]
[400391708,1767499846188,-500.0,0.00012789,2]
[400391709,1767499846198,-500.0,0.00012789,2]
[400391710,1767499846208,-195.56002079,0.00012789,2]
[400391711,1767499846221,-304.43997921,0.00012789,2]
[400391712,1767499846231,-500.0,0.00012789,2]
[400391713,1767499846240,-500.0,0.00012789,2]
[400391714,1767499846250,-500.0,0.00012789,2]
[400391715,1767499846259,-500.0,0.00012789,2]
[400391716,1767499846269,-500.0,0.00012789,2]
[400391717,1767499846278,-500.0,0.00012789,2]
[400391718,1767499846288,-500.0,0.00012789,2]
[400391719,1767499846297,-500.0,0.00012789,2]
[400391720,1767499846306,-500.0,0.00012789,2]
[400391721,1767499846316,-226.4076609,0.00012789,2]
[400391722,1767499846326,-500.0,0.00012789,2]
[400391723,1767499846336,-500.0,0.00012789,2]
[400391725,1767499846346,-500.0,0.00012789,2]
[400391727,1767499846355,-206.93726387,0.00012789,2]
[400391728,1767499846365,-500.0,0.00012789,2]
[400391730,1767499846374,-500.0,0.00012789,2]
[400391732,1767499846384,-500.0,0.00012789,2]
[400391733,1767499846394,-500.0,0.00012789,2]
[400391735,1767499846404,-500.0,0.00012789,2]
[400391736,1767499846414,-500.0,0.00012789,2]
[400391737,1767499846423,-500.0,0.00012789,2]
[400391738,1767499846433,-500.0,0.00012789,2]
[400391739,1767499846443,-500.0,0.00012789,2]
[400391740,1767499846453,-500.0,0.00012789,2]
[400391741,1767499846462,-354.51800768,0.00012789,2]
[400391742,1767499846472,-500.0,0.00012789,2]
[400391743,1767499846485,-500.0,0.00012789,2]
[400391744,1767499846495,-16629.34186091,0.0001279,2]
[400391745,1767499846507,-4260.0,0.0001279,2]
[400391746,1767499846718,-1259.30593299,0.0001279,2]
[400391747,1767499846830,-725.61998,0.0001279,2]
[400391748,1767499846882,-27125.7322261,0.0001279,2]
[400391749,1767499846892,-500.0,0.00012792,2]
[400391750,1767499846902,-160.28,0.00012792,2]
[400391752,1767499846912,-225096.0151225,0.00012793,2]
[400391753,1767499846924,-52248.96356487,0.00012793,2]
[400391764,1767499936041,173.45,9.409e-05,2]
[400391765,1767499936406,198.23,9.758e-05,2]
[400391766,1767499936809,223.01,0.00010106,2]
[400391767,1767499937205,247.79,0.00010455,2]
[400391769,1767500370922,-2478.35695123,0.00012669,2]
[400391770,1767500370944,-1200.0,0.00012788,2]
[400391771,1767500370967,-300.0,0.00012788,2]
[400391772,1767500370989,-367.83932686,0.00012788,2]
[400391773,1767500371010,-500.0,0.00012789,2]
[400391774,1767500371031,-500.0,0.00012789,2]
[400391775,1767500371054,-500.0,0.00012789,2]
[400391776,1767500371075,-500.0,0.00012789,2]
[400391777,1767500371096,-500.0,0.00012789,2]
[400391778,1767500371120,-500.0,0.00012792,2]
[400391779,1767500371143,-500.0,0.00012792,2]
[400391780,1767500371165,-283.24987381,0.00012792,2]
[400391781,1767500371186,-500.0,0.00012792,2]
[400391782,1767500371208,-500.0,0.00012792,2]
[400391783,1767500371229,-223.27477599,0.00012792,2]
[400391784,1767500371253,-500.0,0.00012792,2]
[400391785,1767500371276,-147.27907211,0.00012792,2]
[400391862,1767500886621,420.59818122,0.0001164,2]
[400391871,1767501002870,393.02274841,0.0001164,2]
[400391872,1767501002895,288.18603615,0.0001164,2]
[400391892,1767501031620,-360.48254033,0.00012362,2]
[400391894,1767501031630,-595.0,0.00012362,2]
[400391895,1767501031639,-1.14230895,0.00012404,2]
[400391900,1767501031676,-597.21929559,0.00012404,2]
[400391902,1767501031688,-1882.59342541,0.00012404,2]
[400391904,1767501031697,-500.0,0.00012518,2]
[400391906,1767501031707,-500.0,0.00012655,2]
[400391908,1767501031717,-300.0,0.00012689,2]
[400391910,1767501031727,-1200.0,0.00012689,2]
[400391912,1767501031736,-500.0,0.0001269,2]
[400391914,1767501031745,-500.0,0.0001269,2]
[400391916,1767501031755,-500.0,0.0001269,2]
[400391918,1767501031765,-500.0,0.0001269,2]
[400391920,1767501031774,-500.0,0.0001269,2]
[400391922,1767501031784,-500.0,0.0001269,2]
[400391924,1767501031793,-500.0,0.0001269,2]
[400391926,1767501031803,-500.0,0.0001269,2]
[400391928,1767501031813,-500.0,0.0001269,2]
[400391930,1767501031827,-500.0,0.0001269,2]
[400391932,1767501031836,-525.29821859,0.0001269,2]
[400391934,1767501031849,-500.0,0.0001269,2]
[400391937,1767501031859,-435.89735496,0.0001269,2]
[400391938,1767501031869,-500.0,0.0001269,2]
[400391940,1767501031879,-500.0,0.0001269,2]
[400391942,1767501031890,-500.0,0.0001269,2]
[400391944,1767501031899,-500.0,0.0001269,2]
[400391946,1767501031909,-500.0,0.0001269,2]
[400391948,1767501031918,-643.55576276,0.0001269,2]
[400391950,1767501031928,-287.23240954,0.0001269,2]
[400391952,1767501031937,-500.0,0.0001269,2]
[400391954,1767501031947,-500.0,0.0001269,2]
[400391955,1767501031957,-499.99999999,0.0001269,2]
[400391956,1767501031967,-504.1269972,0.00012691,2]
[400391957,1767501031976,-506.2923432,0.00012691,2]
[400391958,1767501031987,-500.0,0.00012691,2]
[400391959,1767501031996,-500.0,0.00012691,2]
[400391960,1767501032006,-500.0,0.00012691,2]
[400391961,1767501032016,-500.0,0.00012691,2]
[400391962,1767501032026,-500.0,0.00012691,2]
[400391963,1767501032035,-198.27491167,0.00012691,2]
[400391964,1767501032044,-500.0,0.00012691,2]
[400391965,1767501032054,-500.0,0.00012691,2]
[400391966,1767501032064,-276.08850117,0.00012691,2]
[400391967,1767501032073,-500.0,0.00012691,2]
[400391968,1767501032083,-500.0,0.00012691,2]
[400391969,1767501032093,-500.0,0.00012691,2]
[400391970,1767501032102,-500.0,0.00012691,2]
[400391971,1767501032113,-500.0,0.00012691,2]
[400391972,1767501032123,-500.0,0.00012691,2]
[400391973,1767501032133,-500.0,0.00012691,2]
[400391974,1767501032262,-500.0,0.00012691,2]
[400391975,1767501032278,-500.0,0.00012691,2]
[400391976,1767501032287,-500.0,0.00012691,2]
[400391977,1767501032297,-500.0,0.00012691,2]
[400391978,1767501032307,-500.0,0.00012691,2]
[400391979,1767501032316,-500.0,0.00012691,2]
[400391980,1767501032326,-500.0,0.00012691,2]
[400391981,1767501032336,-214.3655432,0.00012691,2]
[400391982,1767501032346,-500.0,0.00012691,2]
[400391983,1767501032355,-500.0,0.00012691,2]
[400391984,1767501032365,-250.0,0.00012691,2]
[400391985,1767501032375,-964.26321232,0.00012691,2]
[400391986,1767501032385,-38176.35314353,0.00012692,2]
[400392014,1767501037731,-144061.71718189,0.00012692,2]
[400392016,1767501037743,-889.78,0.00012692,2]
[400392022,1767501037786,-4854.02705653,0.00012692,2]
[400392028,1767501037845,-848.79101879,0.00012692,2]
[400392106,1767501040133,-456.98,0.00012692,2]
[400392107,1767501040300,-0.01672441,0.00012692,2]
[400392132,1767501045040,-50000.0,0.00012692,2]
[400392133,1767501045052,-602.65323783,0.00012692,2]
[400392143,1767501045919,-66336.73463781,0.00012692,2]
[400392144,1767501085792,155.0,0.0001,2]
[400392145,1767501099729,2000.0,0.0001,7]
[400392155,1767501128078,167.76,0.00010441,2]
[400392169,1767501153315,2000.0,0.0001,7]
[400392171,1767501184857,2000.0,0.0001,15]
[400392173,1767501349229,3389.06396385,0.0001,2]
[400392174,1767501349252,10000.01,0.0001,2]
[400392175,1767501349275,10000.01,0.0001,2]
[400392176,1767501349299,10000.01,0.0001,2]
[400392177,1767501349322,6651.22603615,0.0001,2]
[400392179,1767501578162,3348.78396385,0.0001,2]
[400392180,1767501578185,10000.01,0.0001,2]
[400392181,1767501578207,10000.01,0.0001,2]
[400392182,1767501578229,10000.01,0.0001,2]
[400392183,1767501578251,6651.22603615,0.0001,2]
[400392184,1767501593845,157.57,8.509e-05,2]
[400392185,1767501594267,189.08,8.85e-05,2]
[400392186,1767501594701,220.59,9.19e-05,2]
[400392187,1767501595107,252.11,9.53e-05,2]
[400392188,1767501595555,283.62,9.871e-05,2]
[400392189,1767501595994,315.13,0.00010211,2]
[400392194,1767501905207,152.00368115,0.00012,2]
[400392195,1767501931398,1778.6802827,0.0001,2]
[400392196,1767501931423,10000.01,0.0001,2]
[400392197,1767501931447,3193.6797173,0.0001,2]
[400392265,1767502215067,371.30302826,0.00011639,2]
[400392266,1767502218084,1483.72690093,0.00011639,2]
[400392301,1767502231836,-593.0,0.00012251,2]
[400392303,1767502231846,-356.27288952,0.00012289,2]
[400392305,1767502231857,-1200.0,0.00012328,2]
[400392307,1767502231866,-300.0,0.00012328,2]
[400392309,1767502231877,-569.18089646,0.00012328,2]
[400392311,1767502231889,-465.89833563,0.00012328,2]
[400392335,1767502237922,-164.92076791,0.00012328,2]
[400392336,1767502237932,-165.33,0.00012329,2]
[400392337,1767502237941,-1733.78,0.00012329,2]
[400392338,1767502237951,-20.39866955,0.00012329,2]
[400392339,1767502237969,-1424.42133045,0.00012329,2]
[400392340,1767502237978,-1204.01,0.00012329,2]
[400392342,1767502237988,-1003.35,0.00012329,2]
[400392343,1767502237998,-836.12,0.00012329,2]
[400392345,1767502238007,-696.77,0.00012329,2]
[400392346,1767502238017,-580.64,0.00012329,2]
[400392347,1767502238026,-483.87,0.00012329,2]
[400392348,1767502238035,-403.22,0.00012329,2]
[400392349,1767502238045,-3367.59866955,0.00012389,2]
[400392350,1767502238065,-2248.03168191,0.00012389,2]
[400392370,1767502245311,-336.02,0.00012329,2]
[400392371,1767502245322,-435.97000221,0.00012389,2]
[400392372,1767502245367,-23948.39964633,0.00012389,2]
[400392373,1767502245377,-2480.95502995,0.00012411,2]
[400392374,1767502245388,-181.48924524,0.00012534,2]
[400392375,1767502245398,-160.28836357,0.00012584,2]
[400392376,1767502245408,-151.0,0.00012584,2]
[400392377,1767502245418,-151.0,0.00012584,2]
[400392378,1767502245427,-151.0,0.00012584,2]
[400392379,1767502245437,-151.0,0.00012584,2]
[400392380,1767502245447,-151.0,0.00012584,2]
[400392381,1767502245457,-151.0,0.00012584,2]
[400392382,1767502245466,-234.58960857,0.00012584,2]
[400392383,1767502245476,-2674.60743027,0.00012584,2]
[400392384,1767502245486,-250.0,0.00012584,2]
[400392385,1767502245496,-250.0,0.00012584,2]
[400392386,1767502245506,-250.0,0.00012584,2]
[400392387,1767502245515,-250.0,0.00012584,2]
[400392388,1767502245526,-250.0,0.00012584,2]
[400392389,1767502245536,-250.0,0.00012584,2]
[400392390,1767502245546,-250.0,0.00012584,2]
[400392391,1767502245556,-250.0,0.00012584,2]
[400392392,1767502245566,-250.0,0.00012584,2]
[400392393,1767502245576,-250.0,0.00012584,2]
[400392394,1767502245585,-250.0,0.00012584,2]
[400392395,1767502245594,-250.0,0.00012584,2]
[400392396,1767502245604,-553.64373807,0.00012584,2]
[400392397,1767502245614,-14060.366938,0.00012592,2]
[400392398,1767502245626,-16590.37808782,0.00012592,2]
[400392411,1767502245978,-25219.09411129,0.00012592,2]
[400392412,1767502246000,-295.13886484,0.00012592,2]
[400392413,1767502258454,153.04,8.937e-05,2]
[400392414,1767502258857,178.54,9.28e-05,2]
[400392415,1767502259255,204.05,9.624e-05,2]
[400392416,1767502259657,229.55,9.968e-05,2]
[400392417,1767502260064,255.06,0.00010311,2]
[400392418,1767502325911,159.51,8.464e-05,2]
[400392419,1767502326317,191.41,8.803e-05,2]
[400392420,1767502326723,223.31,9.142e-05,2]
[400392421,1767502327203,255.21,9.48e-05,2]
[400392422,1767502327588,287.11,9.819e-05,2]
[400392423,1767502327991,319.02,0.00010157,2]
[400392424,1767502394236,168.5,8.435e-05,2]
[400392425,1767502394634,202.2,8.773e-05,2]
[400392426,1767502395046,235.9,9.11e-05,2]
[400392427,1767502395621,269.6,9.447e-05,2]
[400392428,1767502395879,303.3,9.785e-05,2]
[400392429,1767502396283,337.0,0.00010122,2]
[400392430,1767502462758,158.64,8.771e-05,2]
[400392431,1767502463289,185.08,9.108e-05,2]
[400392432,1767502463548,211.52,9.445e-05,2]
[400392433,1767502464431,237.96,9.783e-05,2]
[400392434,1767502464856,185.79035351,0.0001012,2]
[400392435,1767502464880,78.60964649,0.0001012,2]
[400392436,1767502469852,9921.40035351,0.00011555,2]
[400392437,1767502469875,10000.01,0.00011555,2]
[400392438,1767502469901,10000.01,0.00011555,2]
[400392439,1767502469923,10000.01,0.00011555,2]
[400392440,1767502469946,852.85808879,0.00011555,2]
[400392441,1767502508654,5000.0,0.00012024,2]
[400392442,1767502526957,2662.7717496,0.00011481,2]
[400392443,1767502529282,189.02,8.147e-05,2]
[400392444,1767502529694,236.28,8.487e-05,2]
[400392445,1767502530103,283.54,8.826e-05,2]
[400392446,1767502530490,330.79,9.166e-05,2]
[400392447,1767502530904,378.05,9.505e-05,2]
[400392448,1767502531328,425.3,9.844e-05,2]
[400392449,1767502531775,472.56,0.00010184,2]
[400392450,1767502531861,4758.57556985,0.00012025,2]
[400392451,1767502599910,160.07,9.855e-05,2]
[400392452,1767502662640,103.05268055,0.0001179,2]
[400392453,1767502662665,396.94731945,0.0001179,2]
[400392454,1767502670419,186.572181,0.0001179,2]
[400392455,1767502704797,3658.56667035,0.00012025,2]
[400392456,1767502782687,500.0,0.0001179,2]
[400392457,1767502790427,500.0,0.0001179,2]
[400392458,1767502798172,500.0,0.0001179,2]
[400392459,1767502805895,500.0,0.0001179,2]
[400392460,1767502813644,500.0,0.0001179,2]
[400392461,1767502821401,508.80631252,0.0001179,2]
[400392462,1767502828198,217.1344286,0.00011358,2]
[400392463,1767502865314,175.32,8.886e-05,2]
[400392464,1767502865733,204.54,9.228e-05,2]
[400392465,1767502866350,233.76,9.57e-05,2]
[400392466,1767502866524,262.98,9.912e-05,2]
[400392467,1767502866951,292.2,0.00010254,2]
[400392468,1767502933808,157.91,9.201e-05,2]
[400392469,1767502934220,180.47,9.542e-05,2]
[400392470,1767502934608,203.03,9.883e-05,2]
[400392471,1767502935008,225.59,0.00010224,2]
[400392472,1767503023031,500.0,0.0001179,2]
[400392473,1767503033621,500.0,0.0001179,2]
[400392474,1767503041377,500.0,0.0001179,2]
[400392491,1767503112112,3338.26925888,0.00011266,2]
[400392492,1767503112134,10000.01,0.00011266,2]
[400392493,1767503112157,10000.01,0.00011266,2]
[400392494,1767503112178,10000.01,0.00011266,2]
[400392495,1767503112200,7291.63620562,0.00011266,2]
[400392513,1767503432504,-181.48924521,0.0001218,2]